fUST/lending_fUST_20260212
["ID","MTS","AMOUNT","RATE_DAILY","PERIOD"]
[405198087,1770900638722,-500.0,0.00023581,2]
[405198088,1770900638732,-762.98213126,0.00023581,2]
[405198089,1770900638741,-866.87761201,0.00023581,2]
[405198090,1770900638749,-762.98213126,0.00023581,2]
[405198091,1770900638758,-500.0,0.00023581,2]
[405198092,1770900638767,-866.87761201,0.00023581,2]
[405198093,1770900638776,-762.98213126,0.00023581,2]
[405198094,1770900638785,-500.0,0.00023581,2]
[405198095,1770900638794,-866.87761201,0.00023581,2]
[405198096,1770900638803,-762.98213126,0.00023581,2]
[405198097,1770900638812,-866.87761201,0.00023581,2]
[405198098,1770900638822,-762.98213126,0.00023581,2]
[405198099,1770900638831,-866.87761201,0.00023581,2]
[405198100,1770900638840,-500.0,0.00023581,2]
[405198101,1770900638849,-762.98213126,0.00023581,2]
[405198102,1770900638858,-866.87761201,0.00023581,2]
[405198103,1770900638866,-500.0,0.00023581,2]
[405198104,1770900638875,-762.98213126,0.00023581,2]
[405198105,1770900638885,-866.87761201,0.00023581,2]
[405198106,1770900638894,-762.98213126,0.00023581,2]
[405198107,1770900638903,-866.87761201,0.00023581,2]
[405198108,1770900638912,-762.98213126,0.00023581,2]
[405198109,1770900638921,-866.87761201,0.00023581,2]
[405198110,1770900638931,-762.98213126,0.00023581,2]
[405198111,1770900638940,-866.87761201,0.00023581,2]
[405198112,1770900638949,-866.87761201,0.00023581,2]
[405198113,1770900638959,-762.98213126,0.00023581,2]
[405198114,1770900638968,-866.87761201,0.00023581,2]
[405198115,1770900638977,-762.98213126,0.00023581,2]
[405198116,1770900638987,-866.87761201,0.00023581,2]
[405198117,1770900638996,-762.98213126,0.00023581,2]
[405198118,1770900639006,-762.98213126,0.00023581,2]
[405198119,1770900639015,-866.87761201,0.00023581,2]
[405198120,1770900639025,-866.87761201,0.00023581,2]
[405198121,1770900639034,-762.98213126,0.00023581,2]
[405198122,1770900639043,-866.87761201,0.00023581,2]
[405198123,1770900639052,-762.98213126,0.00023581,2]
[405198124,1770900639062,-866.87761201,0.00023581,2]
[405198125,1770900639071,-866.87761201,0.00023581,2]
[405198126,1770900639081,-762.98213126,0.00023581,2]
[405198127,1770900639094,-866.87761201,0.00023581,2]
[405198128,1770900639102,-762.98213126,0.00023581,2]
[405198129,1770900639112,-866.87761201,0.00023581,2]
[405198130,1770900639121,-866.87761201,0.00023581,2]
[405198131,1770900639132,-762.98213126,0.00023581,2]
[405198132,1770900639141,-762.98213126,0.00023581,2]
[405198133,1770900639150,-762.98213126,0.00023581,2]
[405198134,1770900639163,-866.87761201,0.00023581,2]
[405198135,1770900639172,-866.87761201,0.00023581,2]
[405198136,1770900639182,-762.98213126,0.00023581,2]
[405198137,1770900639193,-762.98213126,0.00023581,2]
[405198139,1770900639203,-866.87761201,0.00023581,2]
[405198140,1770900639217,-762.98213126,0.00023581,2]
[405198149,1770900639292,-866.87761201,0.00023581,2]
[405198151,1770900639302,-866.87761201,0.00023581,2]
[405198153,1770900639312,-762.98213126,0.00023581,2]
[405198156,1770900639322,-762.98213126,0.00023581,2]
[405198159,1770900639332,-762.98213126,0.00023581,2]
[405198162,1770900639342,-866.87761201,0.00023581,2]
[405198164,1770900639351,-762.98213126,0.00023581,2]
[405198166,1770900639360,-866.87761201,0.00023581,2]
[405198168,1770900639370,-866.87761201,0.00023581,2]
[405198170,1770900639381,-866.87761201,0.00023581,2]
[405198173,1770900639391,-705.68751524,0.00023581,2]
[405198183,1770900639463,200.0,0.000186,2]
[405198194,1770900639568,200.0,0.000187,2]
[405198232,1770900639919,200.0,0.000187,2]
[405198331,1770900640872,200.0,0.000188,2]
[405198408,1770900641659,200.0,0.000188,2]
[405198459,1770900642191,200.0,0.000189,2]
[405198541,1770900642896,200.0,0.000189,2]
[405198608,1770900643492,200.0,0.00019,2]
[405198676,1770900644161,200.0,0.00019,2]
[405198744,1770900644832,200.0,0.000191,2]
[405198789,1770900648926,-1344.61,0.00023571,10]
[405198790,1770900648936,-57.29461602,0.00023581,2]
[405198791,1770900648945,-866.87761201,0.00023581,2]
[405198792,1770900648955,-762.98213126,0.00023581,2]
[405198793,1770900648964,-866.87761201,0.00023581,2]
[405198794,1770900648974,-762.98213126,0.00023581,2]
[405198795,1770900648983,-866.87761201,0.00023581,2]
[405198796,1770900648992,-762.98213126,0.00023581,2]
[405198797,1770900649002,-866.87761201,0.00023581,2]
[405198798,1770900649011,-762.98213126,0.00023581,2]
[405198799,1770900649021,-866.87761201,0.00023581,2]
[405198800,1770900649030,-3306.13345274,0.00023581,2]
[405198801,1770900649039,-3306.13345274,0.00023581,2]
[405198802,1770900649048,-3306.13345274,0.00023581,2]
[405198803,1770900649058,-3306.13345274,0.00023581,2]
[405198804,1770900649069,-500.0,0.00023581,2]
[405198805,1770900649149,-3306.13345274,0.00023581,2]
[405198806,1770900649159,-3306.13345274,0.00023581,2]
[405198807,1770900649169,-3306.13345274,0.00023581,2]
[405198808,1770900649178,-3306.13345274,0.00023581,2]
[405198809,1770900649187,-3306.13345274,0.00023581,2]
[405198810,1770900649196,-3306.13345274,0.00023581,2]
[405198811,1770900649205,-3306.13345274,0.00023581,2]
[405198812,1770900649215,-3306.13345274,0.00023581,2]
[405198813,1770900649224,-3306.13345274,0.00023581,2]
[405198814,1770900649233,-3306.13345274,0.00023581,2]
[405198815,1770900649243,-3306.13345274,0.00023581,2]
[405198816,1770900649252,-3306.13345274,0.00023581,2]
[405198817,1770900649261,-3306.13345274,0.00023581,2]
[405198818,1770900649270,-3306.13345274,0.00023581,2]
[405198819,1770900649279,-500.0,0.00023581,2]
[405198820,1770900649288,-500.0,0.00023581,2]
[405198821,1770900649297,-500.0,0.00023581,2]
[405198822,1770900649307,-500.0,0.00023581,2]
[405198823,1770900649316,-500.0,0.00023581,2]
[405198824,1770900649326,-500.0,0.00023581,2]
[405198825,1770900649335,-600.0,0.00023581,2]
[405198826,1770900649344,-500.0,0.00023581,2]
[405198827,1770900649354,-500.0,0.00023581,2]
[405198828,1770900649363,-500.0,0.00023581,2]
[405198829,1770900649372,-500.0,0.00023581,2]
[405198830,1770900649381,-500.0,0.00023581,2]
[405198831,1770900649391,-500.0,0.00023581,2]
[405198832,1770900649400,-500.0,0.00023581,2]
[405198833,1770900649410,-500.0,0.00023581,2]
[405198834,1770900649419,-500.0,0.00023581,2]
[405198835,1770900649429,-500.0,0.00023581,2]
[405198836,1770900649438,-600.34495679,0.00023581,2]
[405198837,1770900649447,-500.0,0.00023581,2]
[405198838,1770900649457,-500.0,0.00023581,2]
[405198839,1770900649467,-500.0,0.00023581,2]
[405198840,1770900649476,-500.0,0.00023581,2]
[405198841,1770900649486,-500.0,0.00023581,2]
[405198842,1770900649495,-500.0,0.00023581,2]
[405198843,1770900649505,-217.30640259,0.00023581,2]
[405198844,1770900649514,-500.0,0.00023581,2]
[405198845,1770900649523,-1373.33911339,0.00023581,2]
[405198846,1770900649533,-214.77622502,0.00023581,2]
[405198847,1770900649543,-1373.33911339,0.00023581,2]
[405198848,1770900649553,-500.0,0.00023581,2]
[405198849,1770900649562,-1373.33911339,0.00023581,2]
[405198850,1770900649572,-500.0,0.00023581,2]
[405198851,1770900649581,-1373.33911339,0.00023581,2]
[405198852,1770900649591,-500.0,0.00023581,2]
[405198853,1770900649601,-1373.33911339,0.00023581,2]
[405198854,1770900649611,-500.0,0.00023581,2]
[405198855,1770900649621,-1373.33911339,0.00023581,2]
[405198856,1770900649630,-1373.33911339,0.00023581,2]
[405198857,1770900649640,-1373.33911339,0.00023581,2]
[405198858,1770900649649,-1373.33911339,0.00023581,2]
[405198859,1770900649658,-1373.33911339,0.00023581,2]
[405198860,1770900649667,-1373.33911339,0.00023581,2]
[405198861,1770900649677,-1373.33911339,0.00023581,2]
[405198862,1770900649686,-1373.33911339,0.00023581,2]
[405198863,1770900649695,-1373.33911339,0.00023581,2]
[405198864,1770900649705,-1373.33911339,0.00023581,2]
[405198865,1770900649714,-1373.33911339,0.00023581,2]
[405198866,1770900649723,-1373.33911339,0.00023581,2]
[405198867,1770900649733,-1373.33911339,0.00023581,2]
[405198868,1770900649742,-1373.33911339,0.00023581,2]
[405198869,1770900649752,-1373.33911339,0.00023581,2]
[405198870,1770900649762,-1373.33911339,0.00023581,2]
[405198871,1770900649772,-1373.33911339,0.00023581,2]
[405198872,1770900649782,-1373.33911339,0.00023581,2]
[405198873,1770900649791,-1373.33911339,0.00023581,2]
[405198874,1770900649801,-1373.33911339,0.00023581,2]
[405198875,1770900649811,-1373.33911339,0.00023581,2]
[405198876,1770900649820,-1373.33911339,0.00023581,2]
[405198877,1770900649830,-1373.33911339,0.00023581,2]
[405198878,1770900649840,-300.0,0.00023581,2]
[405198879,1770900649849,-300.0,0.00023581,2]
[405198880,1770900649859,-300.0,0.00023581,2]
[405198881,1770900649869,-300.0,0.00023581,2]
[405198882,1770900649879,-300.0,0.00023581,2]
[405198883,1770900649889,-500.0,0.00023582,2]
[405198884,1770900649898,-250.0,0.00023582,2]
[405198885,1770900649908,-250.0,0.00023582,2]
[405198886,1770900649917,-500.0,0.00023582,2]
[405198887,1770900649926,-250.0,0.00023582,2]
[405198888,1770900649935,-250.0,0.00023582,2]
[405198889,1770900649945,-250.0,0.00023582,2]
[405198890,1770900649955,-500.0,0.00023582,2]
[405198891,1770900649964,-250.0,0.00023582,2]
[405198893,1770900649973,-250.0,0.00023582,2]
[405198895,1770900649983,-500.0,0.00023582,2]
[405198897,1770900649992,-250.0,0.00023582,2]
[405198898,1770900650002,-250.0,0.00023582,2]
[405198899,1770900650012,-500.0,0.00023582,2]
[405198900,1770900650022,-341.52582096,0.00023582,2]
[405198901,1770900650032,-250.0,0.00023582,2]
[405198902,1770900650041,-500.0,0.00023582,2]
[405198903,1770900650051,-341.16076066,0.00023582,2]
[405198904,1770900650060,-250.0,0.00023582,2]
[405198905,1770900650069,-500.0,0.00023582,2]
[405198906,1770900650079,-250.0,0.00023582,2]
[405198907,1770900650090,-500.0,0.00023582,2]
[405198908,1770900650099,-250.0,0.00023582,2]
[405198909,1770900650108,-500.0,0.00023582,2]
[405198910,1770900650117,-250.0,0.00023582,2]
[405198911,1770900650128,-500.0,0.00023582,2]
[405198912,1770900650137,-201.93286099,0.00023582,2]
[405198913,1770900650147,-250.0,0.00023582,2]
[405198914,1770900650156,-500.0,0.00023582,2]
[405198915,1770900650168,-209.40437684,0.00023582,2]
[405198916,1770900650177,-250.0,0.00023582,2]
[405198917,1770900650188,-500.0,0.00023582,2]
[405198918,1770900650197,-217.15233878,0.00023582,2]
[405198919,1770900650206,-225.18697532,0.00023582,2]
[405198920,1770900650215,-233.51889341,0.00023582,2]
[405198921,1770900650226,-242.15909246,0.00023582,2]
[405198922,1770900650235,-251.11897888,0.00023582,2]
[405198923,1770900650244,-500.0,0.00023582,2]
[405198924,1770900650253,-260.4103811,0.00023582,2]
[405198925,1770900650263,-500.0,0.00023582,2]
[405198926,1770900650272,-270.0455652,0.00023582,2]
[405198927,1770900650281,-500.0,0.00023582,2]
[405198929,1770900650290,-250.0,0.00023582,2]
[405198930,1770900650299,-280.03725112,0.00023582,2]
[405198931,1770900650308,-500.0,0.00023582,2]
[405198932,1770900650317,-250.0,0.00023582,2]
[405198933,1770900650327,-290.39862941,0.00023582,2]
[405198934,1770900650336,-500.0,0.00023582,2]
[405198935,1770900650345,-250.0,0.00023582,2]
[405198936,1770900650355,-250.0,0.00023582,2]
[405198937,1770900650365,-301.1433787,0.00023582,2]
[405198938,1770900650374,-500.0,0.00023582,2]
[405198939,1770900650384,-250.0,0.00023582,2]
[405198940,1770900650393,-250.0,0.00023582,2]
[405198941,1770900650402,-250.0,0.00023582,2]
[405198942,1770900650412,-250.0,0.00023582,2]
[405198943,1770900650421,-500.0,0.00023582,2]
[405198944,1770900650430,-250.0,0.00023582,2]
[405198945,1770900650439,-250.0,0.00023582,2]
[405198946,1770900650448,-250.0,0.00023582,2]
[405198947,1770900650458,-250.0,0.00023582,2]
[405198948,1770900650467,-256.85353186,0.00023582,2]
[405198949,1770900650476,-250.0,0.00023582,2]
[405198950,1770900650486,-250.0,0.00023582,2]
[405198951,1770900650559,-250.0,0.00023582,2]
[405198952,1770900650570,-250.0,0.00023582,2]
[405198953,1770900650580,-250.0,0.00023582,2]
[405198954,1770900650589,-250.0,0.00023582,2]
[405198955,1770900650599,-250.0,0.00023582,2]
[405198956,1770900650608,-250.0,0.00023582,2]
[405198957,1770900650618,-250.0,0.00023582,2]
[405198958,1770900650627,-250.0,0.00023582,2]
[405198959,1770900650636,-250.0,0.00023582,2]
[405198960,1770900650646,-266.14051245,0.00023582,2]
[405198961,1770900650655,-250.0,0.00023582,2]
[405198962,1770900650664,-250.0,0.00023582,2]
[405198963,1770900650674,-250.0,0.00023582,2]
[405198964,1770900650683,-250.0,0.00023582,2]
[405198966,1770900650692,-250.0,0.00023582,2]
[405198967,1770900650702,-250.0,0.00023582,2]
[405198968,1770900650711,-250.0,0.00023582,2]
[405198969,1770900650721,-250.0,0.00023582,2]
[405198970,1770900650730,-250.0,0.00023582,2]
[405198971,1770900650739,-250.0,0.00023582,2]
[405198972,1770900650749,-250.0,0.00023582,2]
[405198973,1770900650758,-500.0,0.00023582,2]
[405198974,1770900650768,-151.0,0.00023582,2]
[405198975,1770900650777,-162.95264,0.00023582,2]
[405198976,1770900650786,-151.0,0.00023592,2]
[405198977,1770900650796,-151.0,0.00023592,2]
[405198978,1770900650806,-500.0,0.00023592,2]
[405198979,1770900650816,-1000.0,0.00023592,2]
[405198980,1770900650826,-1000.0,0.00023592,2]
[405198981,1770900650835,-1000.0,0.00023592,2]
[405198982,1770900650845,-1000.0,0.00023592,2]
[405198983,1770900650855,-1000.0,0.00023592,2]
[405198984,1770900650864,-1000.0,0.00023592,2]
[405198985,1770900650873,-1000.0,0.00023592,2]
[405198986,1770900650882,-1000.0,0.00023592,2]
[405198987,1770900650892,-1000.0,0.00023592,2]
[405198988,1770900650901,-1000.0,0.00023592,2]
[405198989,1770900650910,-1000.0,0.00023592,2]
[405198990,1770900650919,-220.610486,0.00023592,2]
[405198991,1770900650928,-153.655293,0.00023593,2]
[405198992,1770900650938,-510.0015,0.00023593,2]
[405198994,1770900650948,-151.0,0.00023593,2]
[405198995,1770900650957,-151.0,0.00023593,2]
[405198996,1770900650966,-151.0,0.00023593,2]
[405198997,1770900650976,-151.0,0.00023593,2]
[405198998,1770900650985,-151.0,0.00023593,2]
[405199000,1770900650994,-500.0,0.00023595,2]
[405199001,1770900651004,-500.0,0.00023595,2]
[405199002,1770900651013,-500.0,0.00023595,2]
[405199003,1770900651022,-500.0,0.00023595,2]
[405199004,1770900651032,-265.95747278,0.00023595,2]
[405199006,1770900651042,-154.622662,0.00023597,2]
[405199007,1770900651052,-154.136914,0.000236,2]
[405199008,1770900651062,-151.0,0.000236,2]
[405199009,1770900651072,-151.0,0.000236,2]
[405199011,1770900651081,-151.0,0.000236,2]
[405199012,1770900651092,-151.565656,0.000236,2]
[405199013,1770900651101,-6068.0095893,0.00023603,2]
[405199014,1770900651111,-1236.2271852,0.00023603,2]
[405199015,1770900651120,-31818.0289791,0.00023603,2]
[405199017,1770900651129,-165.051922,0.00023607,2]
[405199018,1770900651139,-151.0,0.00023607,2]
[405199019,1770900651149,-151.0,0.00023607,2]
[405199020,1770900651160,-151.0,0.00023607,2]
[405199022,1770900651169,-535.93,0.00023612,2]
[405199023,1770900651178,-535.93,0.00023612,2]
[405199024,1770900651187,-535.93,0.00023613,2]
[405199025,1770900651197,-535.93,0.00023613,2]
[405199027,1770900651206,-535.93,0.00023613,2]
[405199028,1770900651215,-535.93,0.00023613,2]
[405199029,1770900651225,-535.93,0.00023613,2]
[405199030,1770900651235,-535.93,0.00023613,2]
[405199032,1770900651245,-535.93,0.00023613,2]
[405199033,1770900651255,-535.93,0.00023613,2]
[405199034,1770900651264,-535.93,0.00023613,2]
[405199035,1770900651273,-535.93,0.00023613,2]
[405199037,1770900651282,-535.93,0.00023613,2]
[405199038,1770900651292,-535.93,0.00023613,2]
[405199039,1770900651302,-535.93,0.00023613,2]
[405199041,1770900651312,-535.93,0.00023613,2]
[405199042,1770900651322,-151.0,0.00023613,2]
[405199043,1770900651331,-151.0,0.00023613,2]
[405199044,1770900651341,-2148.60305671,0.00023613,2]
[405199045,1770900651351,-9000.0,0.00023613,2]
[405199047,1770900651361,-2253.93758621,0.00023613,2]
[405199048,1770900651370,-535.93,0.0002362,2]
[405199049,1770900651380,-1328.19165896,0.0002362,3]
[405199050,1770900651389,-535.93,0.00023623,2]
[405199051,1770900651400,-535.93,0.00023634,2]
[405199052,1770900651409,-535.93,0.00023644,2]
[405199054,1770900651418,-535.93,0.00023644,2]
[405199055,1770900651427,-535.93,0.00023644,2]
[405199056,1770900651436,-535.93,0.00023644,2]
[405199057,1770900651446,-535.94845998,0.00023644,2]
[405199059,1770900651455,-151.0,0.00023645,2]
[405199060,1770900651465,-151.0,0.00023645,2]
[405199061,1770900651475,-627.09455966,0.00023649,2]
[405199062,1770900651485,-353.87347825,0.00023649,2]
[405199064,1770900651494,-636.97226086,0.00023649,2]
[405199065,1770900651503,-307.6656679,0.00023649,2]
[405199066,1770900651513,-1128.77020738,0.00023649,2]
[405199067,1770900651523,-2006.7025909,0.00023649,2]
[405199068,1770900651532,-168.0,0.00023734,2]
[405199069,1770900651542,-2233.50435529,0.00023786,3]
[405199070,1770900651552,-687.48044691,0.00023786,3]
[405199071,1770900651562,-156.14114281,0.000238,2]
[405199072,1770900651572,-500.0,0.00023856,2]
[405199073,1770900651582,-209566.5048677,0.00023901,2]
[405199074,1770900651591,-700.0,0.00023919,8]
[405199076,1770900651601,-700.0,0.00023919,8]
[405199077,1770900651610,-700.0,0.00023919,8]
[405199078,1770900651619,-700.0,0.00023919,8]
[405199079,1770900651628,-700.0,0.00023919,8]
[405199080,1770900651637,-700.0,0.00023919,8]
[405199081,1770900651647,-700.0,0.00023919,8]
[405199082,1770900651656,-700.0,0.00023919,8]
[405199083,1770900651666,-261.0,0.00023919,8]
[405199084,1770900651675,-700.0,0.00023921,8]
[405199085,1770900651684,-700.0,0.00023921,8]
[405199086,1770900651693,-700.0,0.00023921,8]
[405199087,1770900651702,-700.0,0.00023921,8]
[405199088,1770900651711,-700.0,0.00023921,8]
[405199089,1770900651720,-700.0,0.00023921,8]
[405199090,1770900651729,-809.0,0.00023921,8]
[405199091,1770900651738,-34616.97382051,0.0002399,2]
[405199092,1770900651747,-7093.06,0.0002399,3]
[405199093,1770900651756,-3546.53,0.0002399,3]
[405199094,1770900651765,-1773.26,0.0002399,3]
[405199095,1770900651774,-886.63,0.0002399,3]
[405199096,1770900651783,-443.32,0.0002399,3]
[405199097,1770900651793,-221.66,0.0002399,3]
[405199098,1770900651864,-664.99,0.0002399,3]
[405199099,1770900651874,-742.60909304,0.0002399,3]
[405199100,1770900651884,-3294.19,0.00024,14]
[405199101,1770900651893,-5938.39643942,0.00024,2]
[405199102,1770900651902,-110859.62604328,0.00024,60]
[405199103,1770900651911,-282.0,0.00024,2]
[405199104,1770900651921,-487.0,0.00024,2]
[405199105,1770900651930,-487.0,0.00024,2]
[405199106,1770900651939,-550.48,0.00024,2]
[405199107,1770900651948,-700.0,0.00024016,8]
[405199108,1770900651958,-700.0,0.00024016,8]
[405199109,1770900651967,-700.0,0.00024016,8]
[405199110,1770900651976,-700.0,0.00024016,8]
[405199111,1770900651985,-716.0,0.00024016,8]
[405199112,1770900651994,-700.0,0.00024017,8]
[405199113,1770900652003,-700.0,0.00024017,8]
[405199114,1770900652012,-700.0,0.00024017,8]
[405199115,1770900652022,-700.0,0.00024017,8]
[405199116,1770900652031,-205.0,0.00024017,8]
[405199117,1770900652040,-1131.26273528,0.00024048,2]
[405199118,1770900652050,-168.0,0.00024049,2]
[405199119,1770900652059,-3132.33732548,0.00024052,2]
[405199120,1770900652069,-168.0,0.00024092,2]
[405199121,1770900652078,-1407.01,0.00024106,2]
[405199122,1770900652090,-2296.344,0.00024106,2]
[405199123,1770900652100,-433.0,0.00024106,2]
[405199124,1770900652109,-633.0,0.00024106,2]
[405199125,1770900652118,-731.0,0.00024106,2]
[405199126,1770900652128,-286.0,0.00024112,2]
[405199127,1770900652137,-700.0,0.00024113,8]
[405199128,1770900652147,-700.0,0.00024113,8]
[405199129,1770900652156,-700.0,0.00024113,8]
[405199130,1770900652167,-244.0,0.00024113,8]
[405199131,1770900652176,-700.0,0.00024113,8]
[405199132,1770900652185,-700.0,0.00024113,8]
[405199133,1770900652194,-603.0,0.00024113,8]
[405199134,1770900652203,-300.0,0.00024121,10]
[405199135,1770900652212,-300.0,0.00024121,10]
[405199136,1770900652221,-300.0,0.00024121,10]
[405199137,1770900652231,-300.0,0.00024121,10]
[405199138,1770900652240,-300.0,0.00024121,10]
[405199139,1770900652249,-300.0,0.00024121,10]
[405199140,1770900652258,-300.0,0.00024121,10]
[405199141,1770900652267,-300.0,0.00024121,10]
[405199142,1770900652277,-300.0,0.00024121,10]
[405199143,1770900652286,-300.0,0.00024121,10]
[405199144,1770900652295,-300.0,0.00024121,10]
[405199145,1770900652304,-300.0,0.00024121,10]
[405199146,1770900652313,-300.0,0.00024121,10]
[405199147,1770900652322,-300.0,0.00024121,10]
[405199148,1770900652332,-300.0,0.00024121,10]
[405199149,1770900652341,-600.0,0.00024123,10]
[405199150,1770900652351,-168.0,0.00024163,2]
[405199151,1770900652360,-150.0,0.00024176,2]
[405199152,1770900652369,-150.0,0.00024176,2]
[405199153,1770900652378,-150.331,0.00024176,2]
[405199154,1770900652387,-250.0,0.00024176,2]
[405199155,1770900652396,-700.0,0.00024188,2]
[405199156,1770900652406,-700.0,0.00024188,2]
[405199157,1770900652415,-694.0,0.00024188,2]
[405199158,1770900652424,-700.0,0.0002419,2]
[405199159,1770900652433,-700.0,0.0002419,2]
[405199160,1770900652443,-700.0,0.0002419,2]
[405199161,1770900652452,-839.0,0.0002419,2]
[405199162,1770900652461,-700.0,0.0002419,2]
[405199163,1770900652470,-700.0,0.0002419,2]
[405199164,1770900652479,-700.0,0.0002419,2]
[405199165,1770900652488,-700.0,0.0002419,2]
[405199166,1770900652497,-179.0,0.0002419,2]
[405199167,1770900652507,-329.0,0.00024349,2]
[405199168,1770900652517,-168.0,0.00024361,2]
[405199169,1770900652527,-168.0,0.00024378,2]
[405199170,1770900652536,-927.45991287,0.00024402,2]
[405199171,1770900652546,-572.0,0.00024418,2]
[405199172,1770900652555,-700.0,0.00024459,2]
[405199173,1770900652565,-556.0,0.00024459,2]
[405199174,1770900652575,-700.0,0.0002446,2]
[405199175,1770900652585,-700.0,0.0002446,2]
[405199176,1770900652594,-363.0,0.0002446,2]
[405199177,1770900652604,-700.0,0.0002446,2]
[405199178,1770900652614,-700.0,0.0002446,2]
[405199179,1770900652624,-387.0,0.0002446,2]
[405199180,1770900652634,-550.0,0.0002447,2]
[405199181,1770900652644,-465.0,0.0002447,2]
[405199182,1770900652653,-151.0,0.000245,6]
[405199183,1770900652663,-721.0,0.00024518,2]
[405199184,1770900652672,-379.0,0.0002455,2]
[405199185,1770900652682,-168.0,0.000246,2]
[405199186,1770900652691,-151.0,0.000246,6]
[405199187,1770900652701,-5041.62237275,0.0002465,2]
[405199188,1770900652710,-150.0,0.00024658,2]
[405199189,1770900652719,-690.0,0.00024668,2]
[405199190,1770900652729,-168.0,0.00024725,2]
[405199191,1770900652738,-837.0,0.0002473,2]
[405199192,1770900652747,-700.0,0.00024731,2]
[405199193,1770900652757,-475.0,0.00024731,2]
[405199194,1770900652766,-1191.0,0.00024731,2]
[405199195,1770900652775,-58425.57560927,0.0002475,2]
[405199196,1770900652784,-2053.70622717,0.0002475,2]
[405199197,1770900652793,-4364.59100514,0.00024774,2]
[405199198,1770900652802,-168.0,0.00024789,2]
[405199199,1770900652811,-151.0,0.000248,8]
[405199200,1770900652821,-151.0,0.000248,9]
[405199201,1770900652830,-309.0,0.00024837,2]
[405199202,1770900652840,-4263.33604549,0.00024857,2]
[405199203,1770900652847,-173.78,0.000249,7]
[405199204,1770900652856,-163.13,0.000249,7]
[405199205,1770900652865,-151.0,0.000249,8]
[405199206,1770900652875,-609.0,0.00024935,2]
[405199207,1770900652885,-1757.0,0.00024965,2]
[405199208,1770900652894,-695.79953646,0.00025,7]
[405199209,1770900652904,-2686.12111691,0.00025,2]
[405199210,1770900652914,-10364.0,0.00025,2]
[405199211,1770900652923,-150.0,0.00025,2]
[405199212,1770900652933,-500.0,0.00025,2]
[405199213,1770900652942,-763.32454325,0.00025,2]
[405199214,1770900652958,-1593.10426522,0.00025,2]
[405199215,1770900652968,-501.31711247,0.00025,14]
[405199216,1770900652977,-1611.0,0.00025,6]
[405199217,1770900652986,-20913.66172427,0.00025,2]
[405199218,1770900653047,-1494.65,0.00025,2]
[405199219,1770900653064,-84846.89937352,0.00025,15]
[405199220,1770900653074,-100000.0,0.00025,2]
[405199221,1770900653086,-10000.0,0.00025,2]
[405199222,1770900653097,-994.0,0.00025,2]
[405199223,1770900653106,-206.15116135,0.00025,2]
[405199224,1770900653116,-650.0,0.0002502,2]
[405199225,1770900653126,-650.0,0.0002502,2]
[405199226,1770900653135,-650.0,0.0002502,2]
[405199227,1770900653145,-650.0,0.0002502,2]
[405199228,1770900653154,-650.0,0.0002502,2]
[405199229,1770900653164,-650.0,0.0002502,2]
[405199230,1770900653173,-287.0,0.0002502,2]
[405199231,1770900653183,-5021.358495,0.00025027,2]
[405199232,1770900653191,-600.0,0.0002503,2]
[405199233,1770900653201,-600.0,0.0002503,2]
[405199234,1770900653210,-525.0,0.0002503,2]